fUST/lending_fUST_20250901
["ID","MTS","AMOUNT","RATE_DAILY","PERIOD"]
[382724260,1756722642409,-480.0,0.00013698,2]
[382724261,1756722642418,-480.0,0.00013698,2]
[382724262,1756722642427,-481.0366567,0.00013698,2]
[382724263,1756722642436,-208.86055729,0.00013698,2]
[382724264,1756722642446,-480.0,0.00013698,2]
[382724266,1756722642456,-480.0,0.00013698,2]
[382724267,1756722642466,-480.0,0.00013698,2]
[382724268,1756722642476,-480.0,0.00013698,2]
[382724269,1756722642485,-480.0,0.00013698,2]
[382724270,1756722642495,-480.0,0.00013698,2]
[382724271,1756722642504,-480.0,0.00013698,2]
[382724272,1756722642513,-480.0,0.00013698,2]
[382724273,1756722642523,-481.65794519,0.00013698,2]
[382724274,1756722642532,-480.0,0.00013698,2]
[382724275,1756722642542,-480.69208295,0.00013698,2]
[382724276,1756722642551,-480.0,0.00013698,2]
[382724277,1756722642561,-480.35556803,0.00013698,2]
[382724278,1756722642571,-480.0,0.00013698,2]
[382724280,1756722642580,-480.0,0.00013698,2]
[382724282,1756722642589,-481.83652388,0.00013698,2]
[382724283,1756722642598,-482.95724241,0.00013698,2]
[382724286,1756722642608,-480.0,0.00013698,2]
[382724288,1756722642618,-480.0,0.00013698,2]
[382724290,1756722642627,-480.0,0.00013698,2]
[382724292,1756722642639,-480.0,0.00013698,2]
[382724294,1756722642649,-480.0,0.00013698,2]
[382724295,1756722642659,-362.3505503,0.00013698,2]
[382724297,1756722642668,-481.52753779,0.00013698,2]
[382724300,1756722642678,-480.0,0.00013698,2]
[382724303,1756722642690,-480.0,0.00013698,2]
[382724306,1756722642699,-524.23,0.00013698,2]
[382724310,1756722642709,-480.0,0.00013698,2]
[382724312,1756722642719,-480.0,0.00013698,2]
[382724315,1756722642729,-482.15268508,0.00013698,2]
[382724318,1756722642738,-480.0,0.00013698,2]
[382724321,1756722642748,-480.0,0.00013698,2]
[382724324,1756722642758,-480.0,0.00013698,2]
[382724326,1756722642767,-480.0,0.00013698,2]
[382724329,1756722642777,-480.0,0.00013698,2]
[382724332,1756722642787,-480.0,0.00013698,2]
[382724334,1756722642797,-480.0,0.00013698,2]
[382724336,1756722642806,-708.94,0.00013698,2]
[382724338,1756722642815,-480.0,0.00013698,2]
[382724340,1756722642825,-481.34972911,0.00013698,2]
[382724342,1756722642834,-480.0,0.00013698,2]
[382724344,1756722642843,-480.0,0.00013698,2]
[382724346,1756722642852,-480.0,0.00013698,2]
[382724348,1756722642862,-480.0,0.00013698,2]
[382724350,1756722642871,-480.0,0.00013698,2]
[382724352,1756722642881,-480.0,0.00013698,2]
[382724354,1756722642891,-480.0,0.00013698,2]
[382724357,1756722642900,-480.0,0.00013698,2]
[382724358,1756722642911,-480.0,0.00013698,2]
[382724361,1756722642921,-480.0,0.00013698,2]
[382724363,1756722642930,-480.0,0.00013698,2]
[382724364,1756722642940,-500.0,0.00013698,2]
[382724367,1756722642950,-480.0,0.00013698,2]
[382724369,1756722642961,-480.0,0.00013698,2]
[382724371,1756722642976,-480.0,0.00013698,2]
[382724373,1756722642985,-551.81,0.00013698,2]
[382724375,1756722642994,-738.68,0.00013698,2]
[382724377,1756722643005,-480.0,0.00013698,2]
[382724378,1756722643014,-480.0,0.00013698,2]
[382724380,1756722643024,-480.0,0.00013698,2]
[382724383,1756722643034,-480.0,0.00013698,2]
[382724384,1756722643044,-480.0,0.00013698,2]
[382724386,1756722643053,-480.0,0.00013698,2]
[382724388,1756722643063,-480.0,0.00013698,2]
[382724390,1756722643072,-480.0,0.00013698,2]
[382724392,1756722643081,-480.0,0.00013698,2]
[382724394,1756722643093,-480.0,0.00013698,2]
[382724397,1756722643102,-480.0,0.00013698,2]
[382724399,1756722643112,-480.0,0.00013698,2]
[382724401,1756722643122,-480.0,0.00013698,2]
[382724403,1756722643132,-480.0,0.00013698,2]
[382724404,1756722643145,-480.0,0.00013698,2]
[382724407,1756722643154,-480.0,0.00013698,2]
[382724408,1756722643165,-480.0,0.00013698,2]
[382724411,1756722643174,-481.63209188,0.00013698,2]
[382724413,1756722643184,-480.0,0.00013698,2]
[382724414,1756722643194,-480.0,0.00013698,2]
[382724416,1756722643204,-480.0,0.00013698,2]
[382724419,1756722643213,-480.0,0.00013698,2]
[382724420,1756722643223,-489.14134259,0.00013698,2]
[382724423,1756722643233,-480.0,0.00013698,2]
[382724425,1756722643243,-480.0,0.00013698,2]
[382724427,1756722643252,-1029.9,0.00013698,2]
[382724429,1756722643262,-793.34,0.00013698,2]
[382724431,1756722643272,-480.0,0.00013698,2]
[382724432,1756722643281,-672.68,0.00013698,2]
[382724435,1756722643290,-480.0,0.00013698,2]
[382724437,1756722643301,-480.0,0.00013698,2]
[382724439,1756722643311,-484.81447225,0.00013698,2]
[382724441,1756722643320,-629.3,0.00013698,2]
[382724444,1756722643330,-734.56,0.00013698,2]
[382724447,1756722643340,-480.0,0.00013698,2]
[382724449,1756722643349,-480.0,0.00013698,2]
[382724450,1756722643359,-480.0,0.00013698,2]
[382724452,1756722643368,-503.54404293,0.00013698,2]
[382724454,1756722643378,-1196.88,0.00013698,2]
[382724456,1756722643387,-1220.84,0.00013698,2]
[382724458,1756722643397,-480.0,0.00013698,2]
[382724460,1756722643407,-481.90123479,0.00013698,2]
[382724462,1756722643417,-480.0,0.00013698,2]
[382724464,1756722643426,-371.6251656,0.00013698,2]
[382724467,1756722643437,-480.0,0.00013698,2]
[382724469,1756722643446,-480.0,0.00013698,2]
[382724471,1756722643455,-480.0,0.00013698,2]
[382724473,1756722643465,-942.68,0.00013698,2]
[382724475,1756722643474,-480.0,0.00013698,2]
[382724476,1756722643484,-850.46,0.00013698,2]
[382724478,1756722643493,-482.02245497,0.00013698,2]
[382724480,1756722643502,-603.12,0.00013698,2]
[382724482,1756722643511,-480.0,0.00013698,2]
[382724484,1756722643521,-480.74850527,0.00013698,2]
[382724486,1756722643530,-480.0,0.00013698,2]
[382724489,1756722643542,-480.0,0.00013698,2]
[382724490,1756722643551,-480.0,0.00013698,2]
[382724493,1756722643561,-480.0,0.00013698,2]
[382724495,1756722643572,-652.55,0.00013698,2]
[382724497,1756722643581,-480.0,0.00013698,2]
[382724499,1756722643590,-480.0,0.00013698,2]
[382724501,1756722643600,-480.0,0.00013698,2]
[382724503,1756722643610,-480.0,0.00013698,2]
[382724505,1756722643619,-480.0,0.00013698,2]
[382724507,1756722643629,-480.0,0.00013698,2]
[382724509,1756722643641,-633.86,0.00013698,2]
[382724510,1756722643650,-480.0,0.00013698,2]
[382724512,1756722643659,-480.0,0.00013698,2]
[382724514,1756722643669,-480.0,0.00013698,2]
[382724516,1756722643679,-480.0,0.00013698,2]
[382724518,1756722643688,-850.98,0.00013698,2]
[382724520,1756722643697,-484.0963283,0.00013698,2]
[382724522,1756722643707,-480.0,0.00013698,2]
[382724524,1756722643718,-480.0,0.00013698,2]
[382724526,1756722643728,-480.0,0.00013698,2]
[382724528,1756722643738,-480.0,0.00013698,2]
[382724530,1756722643747,-480.0,0.00013698,2]
[382724532,1756722643757,-2004.87,0.00013698,2]
[382724534,1756722643766,-480.0,0.00013698,2]
[382724536,1756722643776,-480.0,0.00013698,2]
[382724538,1756722643785,-480.0,0.00013698,2]
[382724540,1756722643794,-480.0,0.00013698,2]
[382724542,1756722643804,-480.0,0.00013698,2]
[382724544,1756722643814,-523.82,0.00013698,2]
[382724546,1756722643823,-480.7163408,0.00013698,2]
[382724548,1756722643832,-480.0,0.00013698,2]
[382724550,1756722643841,-439.02496402,0.00013698,2]
[382724552,1756722643851,-480.0,0.00013698,2]
[382724554,1756722643860,-480.0,0.00013698,2]
[382724556,1756722643870,-480.0,0.00013698,2]
[382724558,1756722643879,-480.0,0.00013698,2]
[382724560,1756722643889,-480.0,0.00013698,2]
[382724562,1756722643897,-480.0,0.00013698,2]
[382724564,1756722643907,-480.0,0.00013698,2]
[382724566,1756722643917,-480.0,0.00013698,2]
[382724568,1756722643927,-480.0,0.00013698,2]
[382724570,1756722643936,-480.0,0.00013698,2]
[382724572,1756722643946,-480.0,0.00013698,2]
[382724574,1756722643955,-4893.39,0.00013698,2]
[382724576,1756722643964,-480.0,0.00013698,2]
[382724578,1756722643973,-685.46,0.00013698,2]
[382724580,1756722643982,-480.0,0.00013698,2]
[382724582,1756722643992,-481.15084301,0.00013698,2]
[382724584,1756722644002,-4723.09,0.00013698,2]
[382724586,1756722644012,-830.62,0.00013698,2]
[382724589,1756722644027,-480.0,0.00013698,2]
[382724591,1756722644039,-480.0,0.00013698,2]
[382724593,1756722644053,-480.0,0.00013698,2]
[382724596,1756722644068,-480.0,0.00013698,2]
[382724598,1756722644079,-480.0,0.00013698,2]
[382724600,1756722644090,-480.0,0.00013698,2]
[382724602,1756722644104,-482.32835045,0.00013698,2]
[382724604,1756722644116,-485.91,0.00013698,2]
[382724607,1756722644130,-571.81544095,0.00013698,2]
[382724609,1756722644142,-530.04,0.00013698,2]
[382724611,1756722644154,-406.80765003,0.00013698,2]
[382724614,1756722644167,-480.0,0.00013698,2]
[382724616,1756722644179,-480.0,0.00013698,2]
[382724618,1756722644192,-480.0,0.00013698,2]
[382724621,1756722644205,-480.0,0.00013698,2]
[382724623,1756722644217,-480.0,0.00013698,2]
[382724625,1756722644228,-1856.17,0.00013698,2]
[382724627,1756722644240,-1614.21,0.00013698,2]
[382724629,1756722644252,-480.0,0.00013698,2]
[382724632,1756722644265,-480.0,0.00013698,2]
[382724634,1756722644276,-1055.54,0.00013698,2]
[382724636,1756722644288,-480.0,0.00013698,2]
[382724638,1756722644302,-480.0,0.00013698,2]
[382724640,1756722644313,-547.26,0.00013698,2]
[382724643,1756722644326,-480.0,0.00013698,2]
[382724645,1756722644337,-480.0,0.00013698,2]
[382724647,1756722644346,-480.0,0.00013698,2]
[382724649,1756722644358,-480.0,0.00013698,2]
[382724651,1756722644369,-480.0,0.00013698,2]
[382724653,1756722644380,-1588.74,0.00013698,2]
[382724656,1756722644392,-375.32385594,0.00013698,2]
[382724658,1756722644404,-480.0,0.00013698,2]
[382724660,1756722644416,-482.94364366,0.00013698,2]
[382724663,1756722644427,-480.0,0.00013698,2]
[382724665,1756722644440,-480.0,0.00013698,2]
[382724667,1756722644453,-480.95202241,0.00013698,2]
[382724670,1756722644466,-480.0,0.00013698,2]
[382724672,1756722644478,-480.0,0.00013698,2]
[382724674,1756722644489,-480.0,0.00013698,2]
[382724676,1756722644499,-480.0,0.00013698,2]
[382724678,1756722644510,-480.0,0.00013698,2]
[382724680,1756722644520,-638.98,0.00013698,2]
[382724682,1756722644531,-480.0,0.00013698,2]
[382724685,1756722644545,-480.0,0.00013698,2]
[382724687,1756722644558,-480.0,0.00013698,2]
[382724689,1756722644570,-480.0,0.00013698,2]
[382724691,1756722644581,-480.0,0.00013698,2]
[382724694,1756722644591,-480.0,0.00013698,2]
[382724696,1756722644603,-670.16,0.00013698,2]
[382724698,1756722644614,-480.0,0.00013698,2]
[382724700,1756722644633,-480.0,0.00013698,2]
[382724702,1756722644655,-480.0,0.00013698,2]
[382724704,1756722644673,-450.05712781,0.00013698,2]
[382724706,1756722644684,-480.0,0.00013698,2]
[382724708,1756722644695,-480.0,0.00013698,2]
[382724711,1756722644706,-480.0,0.00013698,2]
[382724713,1756722644716,-480.0,0.00013698,2]
[382724715,1756722644727,-480.0,0.00013698,2]
[382724717,1756722644739,-480.0,0.00013698,2]
[382724719,1756722644750,-480.0,0.00013698,2]
[382724721,1756722644761,-480.0,0.00013698,2]
[382724723,1756722644772,-480.0,0.00013698,2]
[382724726,1756722644784,-835.43,0.00013698,2]
[382724728,1756722644794,-1301.36,0.00013698,2]
[382724730,1756722644806,-480.0,0.00013698,2]
[382724732,1756722644817,-480.0,0.00013698,2]
[382724734,1756722644828,-480.0,0.00013698,2]
[382724737,1756722644839,-845.32,0.00013698,2]
[382724739,1756722644851,-480.0,0.00013698,2]
[382724741,1756722644861,-480.0,0.00013698,2]
[382724743,1756722644872,-480.0,0.00013698,2]
[382724745,1756722644883,-480.0,0.00013698,2]
[382724747,1756722644894,-609.73,0.00013698,2]
[382724750,1756722644905,-907.86,0.00013698,2]
[382724752,1756722644915,-472.51940407,0.00013698,2]
[382724754,1756722644926,-796.25,0.00013698,2]
[382724756,1756722644937,-480.0,0.00013698,2]
[382724757,1756722644947,-482.01937465,0.00013698,2]
[382724758,1756722644958,-649.74,0.00013698,2]
[382724759,1756722644968,-4719.19,0.00013698,2]
[382724760,1756722644978,-480.0,0.00013698,2]
[382724761,1756722644989,-602.48,0.00013698,2]
[382724762,1756722645001,-482.14397125,0.00013698,2]
[382724763,1756722645010,-1281.37,0.00013698,2]
[382724764,1756722645020,-480.0,0.00013698,2]
[382724765,1756722645030,-480.0,0.00013698,2]
[382724766,1756722645041,-480.0,0.00013698,2]
[382724768,1756722645052,-480.0,0.00013698,2]
[382724770,1756722645062,-480.0,0.00013698,2]
[382724772,1756722645073,-628.27,0.00013698,2]
[382724774,1756722645084,-480.0,0.00013698,2]
[382724777,1756722645095,-480.0,0.00013698,2]
[382724779,1756722645105,-480.0,0.00013698,2]
[382724781,1756722645117,-480.0,0.00013698,2]
[382724783,1756722645128,-480.0,0.00013698,2]
[382724785,1756722645140,-1175.5,0.00013698,2]
[382724787,1756722645150,-480.0,0.00013698,2]
[382724790,1756722645161,-480.0,0.00013698,2]
[382724792,1756722645172,-520.74,0.00013698,2]
[382724794,1756722645182,-726.87,0.00013698,2]
[382724796,1756722645192,-2459.32,0.00013698,2]
[382724798,1756722645203,-1848.48,0.00013698,2]
[382724800,1756722645214,-893.1,0.00013698,2]
[382724802,1756722645224,-512.82,0.00013698,2]
[382724805,1756722645235,-961.39,0.00013698,2]
[382724807,1756722645246,-480.0,0.00013698,2]
[382724809,1756722645257,-480.0,0.00013698,2]
[382724811,1756722645267,-480.0,0.00013698,2]
[382724813,1756722645277,-480.0,0.00013698,2]
[382724815,1756722645288,-480.0,0.00013698,2]
[382724818,1756722645299,-480.0,0.00013698,2]
[382724820,1756722645310,-463.39145523,0.00013698,2]
[382724822,1756722645321,-482.30376197,0.00013698,2]
[382724824,1756722645332,-480.0,0.00013698,2]
[382724826,1756722645343,-515.43,0.00013698,2]
[382724828,1756722645354,-1370.87,0.00013698,2]
[382724830,1756722645364,-480.0,0.00013698,2]
[382724833,1756722645376,-686.48,0.00013698,2]
[382724835,1756722645387,-480.0,0.00013698,2]
[382724837,1756722645399,-480.0,0.00013698,2]
[382724839,1756722645409,-480.0,0.00013698,2]
[382724841,1756722645420,-729.99,0.00013698,2]
[382724844,1756722645432,-480.0,0.00013698,2]
[382724846,1756722645443,-480.0,0.00013698,2]
[382724848,1756722645454,-480.0,0.00013698,2]
[382724850,1756722645465,-480.0,0.00013698,2]
[382724852,1756722645476,-480.0,0.00013698,2]
[382724855,1756722645487,-559.85,0.00013698,2]
[382724858,1756722645498,-530.82,0.00013698,2]
[382724860,1756722645508,-480.0,0.00013698,2]
[382724862,1756722645519,-480.0,0.00013698,2]
[382724864,1756722645532,-480.0,0.00013698,2]
[382724866,1756722645543,-930.18,0.00013698,2]
[382724869,1756722645554,-480.0,0.00013698,2]
[382724871,1756722645565,-480.0,0.00013698,2]
[382724873,1756722645576,-581.07,0.00013698,2]
[382724875,1756722645586,-480.0,0.00013698,2]
[382724877,1756722645597,-480.0,0.00013698,2]
[382724880,1756722645608,-480.61885366,0.00013698,2]
[382724883,1756722645618,-480.0,0.00013698,2]
[382724885,1756722645632,-480.0,0.00013698,2]
[382724887,1756722645645,-480.0,0.00013698,2]
[382724889,1756722645655,-480.0,0.00013698,2]
[382724891,1756722645666,-480.0,0.00013698,2]
[382724893,1756722645678,-480.0,0.00013698,2]
[382724896,1756722645689,-480.42453521,0.00013698,2]
[382724898,1756722645699,-448.19095112,0.00013698,2]
[382724900,1756722645710,-480.0,0.00013698,2]
[382724902,1756722645722,-480.0,0.00013698,2]
[382724904,1756722645734,-480.0,0.00013698,2]
[382724906,1756722645745,-480.0,0.00013698,2]
[382724909,1756722645755,-480.0,0.00013698,2]
[382724911,1756722645766,-480.0,0.00013698,2]
[382724913,1756722645776,-713.99,0.00013698,2]
[382724915,1756722645786,-480.0,0.00013698,2]
[382724917,1756722645797,-480.0,0.00013698,2]
[382724919,1756722645808,-480.0,0.00013698,2]
[382724921,1756722645819,-480.0,0.00013698,2]
[382724924,1756722645829,-798.42,0.00013698,2]
[382724926,1756722645840,-480.0,0.00013698,2]
[382724928,1756722645851,-480.0,0.00013698,2]
[382724930,1756722645861,-480.0,0.00013698,2]
[382724932,1756722645872,-480.0,0.00013698,2]
[382724934,1756722645882,-480.0,0.00013698,2]
[382724937,1756722645893,-480.0,0.00013698,2]
[382724939,1756722645904,-900.37,0.00013698,2]
[382724941,1756722645915,-480.0,0.00013698,2]
[382724943,1756722645925,-480.0,0.00013698,2]
[382724945,1756722645936,-480.0,0.00013698,2]
[382724948,1756722645947,-886.44,0.00013698,2]
[382724950,1756722645958,-481.70153565,0.00013698,2]
[382724952,1756722645969,-753.09,0.00013698,2]
[382724954,1756722645980,-1078.72,0.00013698,2]
[382724956,1756722645993,-480.0,0.00013698,2]
[382724958,1756722646005,-480.0,0.00013698,2]
[382724961,1756722646016,-1494.54,0.00013698,2]
[382724963,1756722646027,-480.0,0.00013698,2]
[382724965,1756722646037,-480.0,0.00013698,2]
[382724967,1756722646048,-614.45,0.00013698,2]
[382724969,1756722646059,-295.55875626,0.00013698,2]
[382724971,1756722646069,-807.11,0.00013698,2]
[382724973,1756722646079,-480.0,0.00013698,2]
[382724975,1756722646090,-480.0,0.00013698,2]
[382724978,1756722646100,-519.6,0.00013698,2]
[382724980,1756722646111,-500.0,0.00013698,2]
[382724982,1756722646121,-619.1463561,0.00013699,2]
[382724984,1756722646132,-151.0,0.00013699,2]
[382725019,1756722646411,-151.0,0.00013699,2]
[382725021,1756722646425,-151.0,0.00013699,2]
[382725023,1756722646434,-151.0,0.00013699,2]
[382725025,1756722646444,-151.0,0.00013699,2]
[382725027,1756722646455,-4852.355802,0.00013699,2]
[382725029,1756722646465,-151.0,0.00013699,2]
[382725031,1756722646474,-40892.1289664,0.00013699,2]
[382725033,1756722646483,-1385.75878,0.00013699,2]
[382725035,1756722646492,-151.0,0.00013699,2]
[382725037,1756722646502,-151.0,0.00013699,2]
[382725039,1756722646511,-163.117839,0.00013699,2]
[382725041,1756722646520,-151.0,0.00013699,2]
[382725043,1756722646530,-151.0,0.00013699,2]
[382725045,1756722646539,-1078.821053,0.00013722,2]
[382725047,1756722646549,-2675.1632491,0.0001374,2]
[382725049,1756722646558,-560.0,0.00013757,2]
[382725051,1756722646567,-151.0,0.000138,2]
[382725053,1756722646576,-151.0,0.00013805,2]
[382725055,1756722646585,-560.0,0.00013862,2]
[382725057,1756722646594,-729.0,0.0001389,2]
[382725059,1756722646603,-128706.82124981,0.000139,2]
[382725061,1756722646612,-337.6341943,0.000139,2]
[382725063,1756722646622,-614.8672278,0.000139,2]
[382725065,1756722646631,-1086.8724341,0.000139,2]
[382725067,1756722646645,-164.7571473,0.000139,2]
[382725069,1756722646654,-161.8574316,0.000139,2]
[382725071,1756722646663,-151.0,0.000139,2]
[382725073,1756722646672,-151.0,0.000139,2]
[382725075,1756722646683,-151.0,0.000139,2]
[382725077,1756722646692,-151.0,0.000139,2]
[382725080,1756722646702,-151.0,0.000139,2]
[382725082,1756722646712,-189.756392,0.000139,2]
[382725083,1756722646722,-151.0,0.000139,2]
[382725086,1756722646732,-1078.821053,0.00013934,2]
[382725088,1756722646741,-854.8,0.00013971,2]
[382725089,1756722646751,-854.8,0.00013971,2]
[382725092,1756722646762,-854.8,0.00013971,2]
[382725093,1756722646771,-854.8,0.00013971,2]
[382725095,1756722646780,-854.89152457,0.00013971,2]
[382725097,1756722646790,-435.60249108,0.00013972,2]
[382725099,1756722646800,-480.0,0.00013972,2]
[382725102,1756722646809,-480.0,0.00013972,2]
[382725103,1756722646818,-480.0,0.00013972,2]
[382725105,1756722646827,-480.0,0.00013972,2]
[382725107,1756722646836,-480.0,0.00013972,2]
[382725110,1756722646846,-400.0,0.00013972,2]
[382725112,1756722646856,-426.79235665,0.00013972,2]
[382725114,1756722646867,-480.0,0.00013972,2]
[382725116,1756722646878,-480.0,0.00013972,2]
[382725117,1756722646887,-480.0,0.00013972,2]
[382725119,1756722646896,-443.39357532,0.00013972,2]
[382725121,1756722646905,-482.53308073,0.00013972,2]
[382725123,1756722646914,-481.4279086,0.00013972,2]
[382725125,1756722646923,-480.0,0.00013972,2]
[382725127,1756722646933,-559.79,0.00013972,2]
[382725129,1756722646942,-480.0,0.00013972,2]
[382725131,1756722646951,-203.01101397,0.00013972,2]
[382725133,1756722646960,-480.0,0.00013972,2]
[382725135,1756722646969,-482.44762185,0.00013972,2]
[382725137,1756722646978,-482.83445905,0.00013972,2]
[382725139,1756722646987,-480.0,0.00013972,2]
[382725141,1756722646996,-480.0,0.00013972,2]
[382725144,1756722647007,-480.0,0.00013972,2]
[382725146,1756722647016,-480.0,0.00013972,2]
[382725148,1756722647026,-480.0,0.00013972,2]
[382725150,1756722647035,-480.0,0.00013972,2]
[382725152,1756722647044,-480.0,0.00013972,2]
[382725154,1756722647054,-480.0,0.00013972,2]
[382725156,1756722647063,-480.0,0.00013972,2]
[382725158,1756722647072,-480.0,0.00013972,2]
[382725159,1756722647082,-480.0,0.00013972,2]
[382725161,1756722647092,-492.66256254,0.00013972,2]
[382725164,1756722647102,-911.72,0.00013972,2]
[382725166,1756722647112,-480.0,0.00013972,2]
[382725168,1756722647121,-480.0,0.00013972,2]
[382725170,1756722647131,-172.59550203,0.00013972,2]
[382725172,1756722647140,-482.37365407,0.00013972,2]
[382725174,1756722647149,-480.0,0.00013972,2]
[382725176,1756722647158,-480.0,0.00013972,2]
[382725178,1756722647167,-480.0,0.00013972,2]
[382725180,1756722647176,-555.65857154,0.00013972,2]
[382725182,1756722647186,-483.3550606,0.00013972,2]
[382725184,1756722647195,-466.02132451,0.00013972,2]
[382725186,1756722647204,-480.0,0.00013972,2]
[382725188,1756722647214,-480.0,0.00013972,2]
[382725190,1756722647223,-480.0,0.00013972,2]
[382725192,1756722647232,-480.0,0.00013972,2]
[382725194,1756722647242,-480.0,0.00013972,2]
[382725196,1756722647251,-481.90278078,0.00013972,2]
[382725198,1756722647260,-480.0,0.00013972,2]
[382725200,1756722647270,-480.0,0.00013972,2]
[382725202,1756722647279,-480.0,0.00013972,2]
[382725204,1756722647288,-480.0,0.00013972,2]
[382725206,1756722647297,-529.82,0.00013972,2]
[382725208,1756722647306,-480.0,0.00013972,2]
[382725210,1756722647316,-480.0,0.00013972,2]
[382725212,1756722647325,-151.0,0.00013972,2]
[382725214,1756722647334,-480.0,0.00013972,2]
[382725216,1756722647343,-480.0,0.00013972,2]
[382725218,1756722647352,-480.0,0.00013972,2]
[382725220,1756722647362,-480.0,0.00013972,2]
[382725222,1756722647371,-480.0,0.00013972,2]
[382725224,1756722647380,-480.0,0.00013972,2]
[382725226,1756722647389,-480.0,0.00013972,2]
[382725227,1756722647398,-480.0,0.00013972,2]
[382725229,1756722647407,-480.0,0.00013972,2]
[382725231,1756722647416,-480.0,0.00013972,2]
[382725233,1756722647425,-480.0,0.00013972,2]
[382725235,1756722647435,-481.4460075,0.00013972,2]
[382725237,1756722647444,-480.0,0.00013972,2]
[382725240,1756722647454,-480.0,0.00013972,2]
[382725241,1756722647464,-480.0,0.00013972,2]
[382725243,1756722647473,-480.0,0.00013972,2]
[382725246,1756722647483,-480.0,0.00013972,2]
[382725248,1756722647493,-151.0,0.00013972,2]
[382725250,1756722647502,-480.0,0.00013972,2]
[382725252,1756722647511,-480.0,0.00013972,2]
[382725254,1756722647520,-480.0,0.00013972,2]
[382725256,1756722647530,-480.0,0.00013972,2]
[382725258,1756722647539,-480.0,0.00013972,2]
[382725260,1756722647549,-480.0,0.00013972,2]
[382725262,1756722647558,-480.0,0.00013972,2]
[382725264,1756722647569,-481.49182011,0.00013972,2]
[382725266,1756722647578,-480.0,0.00013972,2]
[382725268,1756722647587,-480.0,0.00013972,2]
[382725270,1756722647597,-484.08489129,0.00013972,2]
[382725272,1756722647606,-480.0,0.00013972,2]
[382725274,1756722647616,-480.0,0.00013972,2]
[382725276,1756722647625,-480.0,0.00013972,2]
[382725278,1756722647635,-480.0,0.00013972,2]
[382725280,1756722647648,-442.64360987,0.00013972,2]
[382725282,1756722647657,-480.0,0.00013972,2]
[382725284,1756722647667,-480.0,0.00013972,2]
[382725286,1756722647677,-480.0,0.00013972,2]
[382725288,1756722647686,-480.0,0.00013972,2]
[382725290,1756722647695,-480.0,0.00013972,2]
[382725292,1756722647704,-480.0,0.00013972,2]
[382725294,1756722647715,-480.0,0.00013972,2]
[382725296,1756722647724,-480.0,0.00013972,2]
[382725298,1756722647733,-480.0,0.00013972,2]
[382725300,1756722647742,-481.86328089,0.00013972,2]
[382725302,1756722647751,-480.0,0.00013972,2]
[382725304,1756722647760,-482.5624001,0.00013972,2]
[382725306,1756722647770,-480.0,0.00013972,2]
[382725308,1756722647779,-548.95,0.00013972,2]
[382725310,1756722647789,-480.0,0.00013972,2]
[382725312,1756722647798,-480.0,0.00013972,2]